fUSD/lending_fUSD_20251228
["ID","MTS","AMOUNT","RATE_DAILY","PERIOD"]
[399956077,1766939440678,-500.0,0.00015989,2]
[399956079,1766939440688,-250.0,0.00015989,2]
[399956081,1766939440697,-500.0,0.00015989,2]
[399956083,1766939440711,-500.0,0.00015989,2]
[399956085,1766939440720,-250.0,0.00015989,2]
[399956088,1766939440731,-464.13460563,0.00015989,2]
[399956090,1766939440743,-35.86539437,0.00015989,2]
[399956092,1766939440753,-500.0,0.00015989,2]
[399956094,1766939440763,-250.0,0.00015989,2]
[399956096,1766939440774,-500.0,0.00015989,2]
[399956098,1766939440783,-500.0,0.00015989,2]
[399956100,1766939440793,-250.0,0.00015989,2]
[399956102,1766939440802,-500.0,0.00015989,2]
[399956104,1766939440813,-500.0,0.00015989,2]
[399956106,1766939440822,-12.64709347,0.00015989,2]
[399956108,1766939440835,-237.35290653,0.00015989,2]
[399956110,1766939440844,-500.0,0.00015989,2]
[399956112,1766939440854,-500.0,0.00015989,2]
[399956114,1766939440864,-250.0,0.00015989,2]
[399956116,1766939440873,-250.0,0.00015989,2]
[399956118,1766939440883,-150.0,0.00016137,2]
[399956120,1766939440893,-5000.00031248,0.000162,5]
[399956122,1766939440902,-510.0,0.00016238,2]
[399956124,1766939440912,-1167.4307,0.00016269,2]
[399956126,1766939440922,-236.12,0.00016269,2]
[399956128,1766939440931,-1655.9879,0.00016269,2]
[399956130,1766939440940,-2500.0,0.00016269,2]
[399956132,1766939440950,-166.67,0.00016273,2]
[399956134,1766939440959,-177.16136204,0.00016291,2]
[399956136,1766939440969,-10572.08158575,0.00016292,2]
[399956139,1766939440980,-5585.49812378,0.00016292,2]
[399956141,1766939440990,-6843.65071701,0.00016327,2]
[399956143,1766939441000,-194.27658486,0.00016328,2]
[399956144,1766939441009,-509.03802287,0.00016358,2]
[399956146,1766939441019,-16157.57970946,0.0001636,2]
[399956149,1766939441030,-333.79263809,0.00016364,2]
[399956151,1766939441039,-621.98415718,0.00016368,2]
[399956153,1766939441049,-500.0,0.00016368,2]
[399956154,1766939441058,-500.0,0.00016368,2]
[399956156,1766939441068,-500.0,0.00016368,2]
[399956158,1766939441078,-500.0,0.00016368,2]
[399956160,1766939441088,-500.0,0.00016368,2]
[399956163,1766939441097,-341.62356354,0.00016368,2]
[399956165,1766939441107,-500.0,0.00016368,2]
[399956166,1766939441116,-500.0,0.00016368,2]
[399956169,1766939441125,-500.0,0.00016368,2]
[399956170,1766939441135,-500.0,0.00016368,2]
[399956172,1766939441144,-226.02306105,0.00016368,2]
[399956174,1766939441153,-223.17211178,0.00016368,2]
[399956176,1766939441163,-500.0,0.00016368,2]
[399956179,1766939441172,-500.0,0.00016368,2]
[399956180,1766939441182,-500.0,0.00016368,2]
[399956182,1766939441191,-500.0,0.00016368,2]
[399956184,1766939441200,-500.0,0.00016368,2]
[399956187,1766939441210,-500.0,0.00016368,2]
[399956188,1766939441219,-500.0,0.00016368,2]
[399956191,1766939441228,-191.46356797,0.00016368,2]
[399956193,1766939441238,-500.0,0.00016368,2]
[399956195,1766939441247,-500.0,0.00016368,2]
[399956197,1766939441256,-500.0,0.00016368,2]
[399956199,1766939441266,-500.0,0.00016368,2]
[399956200,1766939441275,-500.0,0.00016368,2]
[399956203,1766939441284,-328.5132583,0.00016368,2]
[399956205,1766939441294,-500.0,0.00016368,2]
[399956206,1766939441306,-500.0,0.00016368,2]
[399956208,1766939441315,-500.0,0.00016368,2]
[399956210,1766939441324,-500.0,0.00016368,2]
[399956212,1766939441334,-500.0,0.00016368,2]
[399956214,1766939441343,-500.0,0.00016368,2]
[399956216,1766939441352,-500.0,0.00016368,2]
[399956218,1766939441362,-500.0,0.00016368,2]
[399956220,1766939441371,-302.88417627,0.00016368,2]
[399956222,1766939441380,-500.0,0.00016368,2]
[399956225,1766939441390,-500.0,0.00016368,2]
[399956226,1766939441400,-1000000.0,0.00016369,2]
[399956228,1766939441409,-6843.65071695,0.00016391,2]
[399956231,1766939441419,-16157.57970946,0.00016427,2]
[399956233,1766939441428,-1667.0,0.00016431,2]
[399956234,1766939441438,-500.0,0.00016438,2]
[399956237,1766939441447,-500.0,0.00016438,2]
[399956239,1766939441457,-500.0,0.00016438,2]
[399956241,1766939441467,-500.0,0.00016438,2]
[399956243,1766939441476,-500.0,0.00016438,2]
[399956245,1766939441485,-500.0,0.00016438,2]
[399956247,1766939441495,-500.0,0.00016438,2]
[399956248,1766939441504,-500.0,0.00016438,2]
[399956251,1766939441513,-500.0,0.00016438,2]
[399956253,1766939441523,-500.0,0.00016438,2]
[399956255,1766939441534,-500.0,0.00016438,2]
[399956257,1766939441547,-500.0,0.00016438,2]
[399956259,1766939441558,-390.80449312,0.00016438,2]
[399956261,1766939441567,-500.0,0.00016438,2]
[399956262,1766939441576,-500.0,0.00016438,2]
[399956265,1766939441586,-500.0,0.00016438,2]
[399956267,1766939441595,-500.0,0.00016438,2]
[399956269,1766939441604,-500.0,0.00016438,2]
[399956271,1766939441614,-500.0,0.00016438,2]
[399956273,1766939441623,-500.0,0.00016438,2]
[399956275,1766939441632,-500.0,0.00016438,2]
[399956277,1766939441641,-500.0,0.00016438,2]
[399956279,1766939441651,-500.0,0.00016438,2]
[399956281,1766939441659,-500.0,0.00016438,2]
[399956283,1766939441668,-500.0,0.00016438,2]
[399956285,1766939441677,-500.0,0.00016438,2]
[399956287,1766939441686,-500.0,0.00016438,2]
[399956289,1766939441695,-500.0,0.00016438,2]
[399956291,1766939441705,-500.0,0.00016438,2]
[399956292,1766939441714,-500.0,0.00016438,2]
[399956294,1766939441724,-500.0,0.00016438,2]
[399956297,1766939441733,-500.0,0.00016438,2]
[399956298,1766939441743,-500.0,0.00016438,2]
[399956301,1766939441752,-500.0,0.00016438,2]
[399956303,1766939441761,-500.0,0.00016438,2]
[399956305,1766939441771,-500.0,0.00016438,2]
[399956307,1766939441780,-500.0,0.00016438,2]
[399956309,1766939441789,-500.0,0.00016438,2]
[399956311,1766939441798,-500.0,0.00016438,2]
[399956312,1766939441809,-500.0,0.00016438,2]
[399956314,1766939441818,-500.0,0.00016438,2]
[399956316,1766939441827,-500.0,0.00016438,2]
[399956318,1766939441837,-500.0,0.00016438,2]
[399956321,1766939441846,-500.0,0.00016438,2]
[399956322,1766939441855,-500.0,0.00016438,2]
[399956324,1766939441865,-500.0,0.00016438,2]
[399956326,1766939441876,-500.0,0.00016438,2]
[399956328,1766939441886,-500.0,0.00016438,2]
[399956330,1766939441895,-500.0,0.00016438,2]
[399956332,1766939441904,-500.0,0.00016438,2]
[399956334,1766939441917,-500.0,0.00016438,2]
[399956337,1766939441926,-300.00000001,0.00016438,2]
[399956339,1766939441935,-500.0,0.00016438,2]
[399956341,1766939441951,-500.0,0.00016438,2]
[399956343,1766939441960,-500.0,0.00016438,2]
[399956345,1766939441970,-500.0,0.00016438,2]
[399956347,1766939441979,-500.0,0.00016438,2]
[399956349,1766939441988,-500.0,0.00016438,2]
[399956351,1766939441997,-500.0,0.00016438,2]
[399956353,1766939442012,-500.0,0.00016438,2]
[399956355,1766939442021,-500.0,0.00016438,2]
[399956357,1766939442030,-250.0,0.00016438,2]
[399956359,1766939442039,-5891.6,0.00016438,2]
[399956361,1766939442048,-6843.65071695,0.00016454,2]
[399956363,1766939442058,-1667.0,0.00016469,2]
[399956365,1766939442067,-16157.57970946,0.00016495,2]
[399956367,1766939442076,-6843.65071695,0.00016518,2]
[399956369,1766939442085,-196.74687624,0.00016521,2]
[399956371,1766939442095,-1000.0,0.00016521,2]
[399956373,1766939442104,-1667.0,0.00016544,2]
[399956375,1766939442113,-150.0,0.00016562,2]
[399956377,1766939442121,-16157.57970946,0.00016562,2]
[399956379,1766939442130,-6843.65071695,0.00016582,2]
[399956381,1766939442140,-1740.9,0.00016626,2]
[399956383,1766939442150,-16157.57970946,0.0001663,2]
[399956385,1766939442159,-6843.65071695,0.00016645,2]
[399956387,1766939442169,-162.15898507,0.0001666,2]
[399956389,1766939442178,-16157.57970946,0.00016697,2]
[399956391,1766939442190,-500.0,0.00016699,2]
[399956393,1766939442203,-1587.0,0.00016699,2]
[399956395,1766939442212,-500.0,0.00016699,2]
[399956397,1766939442222,-500.0,0.00016699,2]
[399956399,1766939442231,-177.16136203,0.000167,2]
[399956401,1766939442240,-6843.65071695,0.00016709,2]
[399956403,1766939442250,-1667.0,0.0001671,2]
[399956405,1766939442259,-500.0,0.00016726,2]
[399956407,1766939442268,-1587.0,0.00016726,2]
[399956409,1766939442277,-515.48135853,0.00016726,2]
[399956411,1766939442289,-500.0,0.00016726,2]
[399956413,1766939442298,-500.0,0.00016754,2]
[399956415,1766939442308,-1587.0,0.00016754,2]
[399956417,1766939442317,-500.0,0.00016754,2]
[399956419,1766939442327,-16157.57970946,0.00016765,2]
[399956421,1766939442336,-6843.65071695,0.00016773,2]
[399956423,1766939442346,-500.0,0.00016781,2]
[399956425,1766939442355,-1587.0,0.00016781,2]
[399956427,1766939442364,-500.0,0.00016781,2]
[399956429,1766939442373,-29918.8137,0.000168,2]
[399956431,1766939442383,-1000.0,0.000168,2]
[399956433,1766939442392,-500.0,0.00016809,2]
[399956435,1766939442402,-1587.0,0.00016809,2]
[399956437,1766939442411,-500.0,0.00016809,2]
[399956439,1766939442421,-16157.57970946,0.00016832,2]
[399956441,1766939442430,-500.0,0.00016836,2]
[399956443,1766939442439,-1587.0,0.00016836,2]
[399956445,1766939442449,-6843.65071695,0.00016836,2]
[399956447,1766939442459,-500.0,0.00016863,2]
[399956449,1766939442468,-1587.0,0.00016863,2]
[399956451,1766939442477,-1667.0,0.00016865,2]
[399956453,1766939442487,-311.20663021,0.00016891,2]
[399956455,1766939442496,-1587.0,0.00016891,2]
[399956457,1766939442505,-16157.57970946,0.000169,2]
[399956459,1766939442515,-172.52224244,0.000169,2]
[399956461,1766939442524,-161.01679871,0.000169,2]
[399956463,1766939442535,-6843.65071695,0.000169,2]
[399956465,1766939442547,-171.6502218,0.000169,2]
[399956467,1766939442557,-202.5810054,0.000169,2]
[399956469,1766939442566,-3537.0,0.000169,2]
[399956471,1766939442575,-1587.0,0.00016918,2]
[399956473,1766939442587,-1456.234,0.00016927,2]
[399956475,1766939442596,-181.608,0.00016927,2]
[399956477,1766939442605,-1587.0,0.00016946,2]
[399956479,1766939442616,-1667.0,0.00016957,2]
[399956481,1766939442625,-1587.0,0.00016973,2]
[399956483,1766939442634,-150.0,0.00016973,2]
[399956485,1766939442643,-150.0,0.00016986,2]
[399956487,1766939442652,-150.0,0.00016986,2]
[399956489,1766939442662,-150.0,0.00016986,2]
[399956491,1766939442671,-150.0,0.00016986,2]
[399956493,1766939442681,-150.0,0.00016986,2]
[399956495,1766939442690,-31771.6,0.00016986,2]
[399956497,1766939442699,-500.0,0.00016989,2]
[399956499,1766939442709,-500.0,0.00016989,2]
[399956501,1766939442719,-901.84,0.0001699,2]
[399956503,1766939442728,-500.0,0.00016996,2]
[399956504,1766939442738,-1667.0,0.00016997,2]
[399956506,1766939442748,-210748.289718,0.00016997,2]
[399956508,1766939442757,-23661.7528154,0.00016997,2]
[399956510,1766939442766,-66877.3297834,0.00016997,2]
[399956512,1766939442775,-500.0,0.00016999,2]
[399956514,1766939442785,-500.0,0.00016999,2]
[399956517,1766939442794,-500.0,0.00016999,2]
[399956519,1766939442803,-300.0,0.00016999,2]
[399956521,1766939442812,-300.0,0.00016999,2]
[399956523,1766939442822,-500.0,0.00016999,2]
[399956525,1766939442831,-190.55361039,0.00016999,2]
[399956527,1766939442841,-500.0,0.00016999,2]
[399956529,1766939442851,-500.0,0.00016999,2]
[399956531,1766939442860,-500.0,0.00016999,2]
[399956533,1766939442870,-500.0,0.00016999,2]
[399956535,1766939442880,-646.48024776,0.00016999,2]
[399956537,1766939442889,-300.0,0.00016999,2]
[399956539,1766939442898,-300.0,0.00016999,2]
[399956541,1766939442908,-666.0,0.00016999,2]
[399956543,1766939442917,-1345846.01020511,0.00017,2]
[399956546,1766939442936,-967338.51233661,0.00017,2]
[399956549,1766939442946,-250.0,0.00017,2]
[399956550,1766939442955,-192871.86096419,0.00017,2]
[399956553,1766939442966,-380351.893882,0.00017,2]
[399956555,1766939442977,-12986.48553838,0.00017,2]
[399956557,1766939442988,-844.27,0.00017,2]
[399956559,1766939442999,-550.60139311,0.00017,2]
[399956670,1766939444057,-151.0,0.00015947,2]
[399956672,1766939444067,-151.0,0.00015947,2]
[399956674,1766939444076,-56972.92085042,0.00017,2]
[399956761,1766939445300,-15224.10417946,0.00017,2]
[399956849,1766939446143,-138472.98281305,0.00017,2]
[399956851,1766939446155,-636.735041,0.00017,2]
[399956857,1766939446198,-9535.13739471,0.00017,2]
[399956859,1766939446209,-1529.2089369,0.00017,2]
[399956861,1766939446220,-663.21857907,0.00017,2]
[399956875,1766939446358,-294443.85503591,0.00017,2]
[399956878,1766939446370,-954.45988669,0.00017,2]
[399956880,1766939446382,-266144.35066238,0.00017,2]
[399956953,1766939743599,237.0,0.0003,120]
[399956955,1766940497189,257.0,0.00030137,120]
[399956956,1766940554135,-166.66,0.00014007,2]
[399956957,1766940554156,-82.1114516,0.00014301,2]
[399956984,1766940632854,-84.5485484,0.00014301,2]
[399956985,1766940632866,-300.0,0.00014327,2]
[399956986,1766940632877,-1200.0,0.00014327,2]
[399956987,1766940632887,-12855.67435139,0.00014328,2]
[399956988,1766940632899,-3078.20260405,0.00014328,2]
[399956989,1766940632911,-138.97304456,0.00014328,2]
[399956990,1766940632922,-149.31489993,0.00014596,2]
[399956991,1766940632934,-17.34510007,0.00014596,2]
[399956992,1766940632944,-390.91235313,0.0001482,2]
[399956993,1766940632956,-109.08764687,0.0001482,2]
[399956994,1766940632965,-195.02419298,0.0001482,2]
[399956995,1766940632975,-19.21741465,0.00014821,2]
[399956996,1766940633030,-607.56498033,0.00014821,2]
[399956997,1766940633046,-519.99902324,0.00014821,2]
[399956998,1766940633058,-5335.14297528,0.00014821,2]
[399956999,1766940633070,-558.76267928,0.00014821,2]
[399957000,1766940633082,-1013.08682692,0.00014821,2]
[399957001,1766940633095,-3274.61395881,0.00014821,2]
[399957002,1766940633107,-4010.34,0.00014821,2]
[399957003,1766940633119,-1331.26324519,0.00014821,2]
[399957004,1766940633130,-657.85661962,0.00014821,2]
[399957005,1766940633142,-344.58,0.00014821,2]
[399957006,1766940633154,-1216.52268336,0.00014821,2]
[399957007,1766940633165,-477.50618194,0.00014821,2]
[399957008,1766940633177,-569.31587421,0.00014821,2]
[399957009,1766940633188,-1100.7542825,0.00014821,2]
[399957013,1766940638058,-500.0,0.0001482,2]
[399957014,1766940638068,-500.0,0.0001482,2]
[399957015,1766940638079,-500.0,0.0001482,2]
[399957016,1766940638088,-500.0,0.0001482,2]
[399957017,1766940638098,-500.0,0.0001482,2]
[399957018,1766940638107,-500.0,0.0001482,2]
[399957019,1766940638117,-500.0,0.0001482,2]
[399957020,1766940638127,-500.0,0.0001482,2]
[399957021,1766940638136,-328.5132583,0.0001482,2]
[399957022,1766940638147,-500.0,0.0001482,2]
[399957023,1766940638156,-500.0,0.0001482,2]
[399957024,1766940638166,-500.0,0.0001482,2]
[399957025,1766940638176,-500.0,0.0001482,2]
[399957026,1766940638186,-500.0,0.0001482,2]
[399957027,1766940638195,-500.0,0.0001482,2]
[399957028,1766940638205,-414.63567975,0.0001482,2]
[399957029,1766940638215,-417.80340117,0.0001482,2]
[399957030,1766940638225,-500.0,0.0001482,2]
[399957031,1766940638237,-500.0,0.0001482,2]
[399957032,1766940638247,-500.0,0.0001482,2]
[399957033,1766940638256,-500.0,0.0001482,2]
[399957034,1766940638265,-500.0,0.0001482,2]
[399957035,1766940638275,-500.0,0.0001482,2]
[399957036,1766940638285,-300.0,0.0001482,2]
[399957037,1766940638295,-500.0,0.0001482,2]
[399957038,1766940638305,-500.0,0.0001482,2]
[399957039,1766940638314,-83182.72415544,0.00014821,2]
[399957040,1766940638331,-3594.89716989,0.00014821,2]
[399957041,1766940638342,-478.37891291,0.00014821,2]
[399957042,1766940638354,-1449.6465707,0.00014821,2]
[399957043,1766940638365,-476.81295156,0.00014821,2]
[399957044,1766940638376,-4362.23864286,0.00014821,2]
[399957046,1766940638387,-5008.80208936,0.00014821,2]
[399957048,1766940638398,-351.88118535,0.00014821,2]
[399957059,1766940640118,-372.34049029,0.00014821,2]
[399957060,1766940640130,-393.66239999,0.00014821,2]
[399957061,1766940640141,-744.9507779,0.00014821,2]
[399957062,1766940640152,-657.495013,0.00014821,2]
[399957063,1766940640327,-877889.64289542,0.00014821,2]
[399957064,1766940640337,-166.66,0.00014891,2]
[399957065,1766940640351,-1607.273,0.0001492,2]
[399957066,1766940640360,-181.608,0.0001492,2]
[399957067,1766940640370,-4102.637,0.00014921,2]
[399957068,1766940640379,-25952.2054,0.00014921,2]
[399957069,1766940640389,-2500.0,0.00014921,2]
[399957070,1766940640398,-509.03802287,0.00015001,2]
[399957071,1766940640409,-300.0,0.00015001,2]
[399957072,1766940640418,-6843.65071701,0.00015002,2]
[399957073,1766940640427,-201.23401647,0.00015012,2]
[399957074,1766940640436,-200.0,0.00015012,2]
[399957075,1766940640446,-504.00666552,0.00015012,2]
[399957076,1766940640455,-901.84,0.00015019,2]
[399957077,1766940640465,-500.0,0.0001502,2]
[399957078,1766940640474,-500.0,0.0001502,2]
[399957079,1766940640484,-500.0,0.0001502,2]
[399957080,1766940640493,-500.0,0.0001502,2]
[399957081,1766940640502,-500.0,0.0001502,2]
[399957082,1766940640512,-500.0,0.0001502,2]
[399957083,1766940640521,-190.55361039,0.0001502,2]
[399957084,1766940640531,-194.27658486,0.00015102,2]
[399957086,1766940640540,-166.66,0.00015186,2]
[399957087,1766940640549,-6843.65071695,0.00015213,2]
[399957088,1766940640558,-150.0,0.00015288,2]
[399957089,1766940640567,-150.0,0.00015288,2]
[399957090,1766940640576,-150.0,0.00015288,2]
[399957091,1766940640585,-150.0,0.00015288,2]
[399957092,1766940640595,-150.0,0.00015288,2]
[399957093,1766940640604,-150.0,0.00015288,2]
[399957094,1766940640613,-901.84,0.00015293,2]
[399957095,1766940640622,-294.02880093,0.00015302,2]
[399957096,1766940640631,-6344.85,0.0001531,2]
[399957097,1766940640640,-9999.99,0.0001531,2]
[399957098,1766940640649,-150.99,0.0001531,2]
[399957099,1766940640658,-214.28,0.00015363,2]
[399957100,1766940640667,-158.58,0.00015386,2]
[399957101,1766940640676,-6843.65071695,0.00015424,2]
[399957102,1766940640685,-150.0,0.00015458,2]
[399957103,1766940640694,-166.66,0.00015481,2]
[399957104,1766940640704,-901.84,0.00015567,2]
[399957105,1766940640713,-150.0,0.00015627,2]
[399957106,1766940640722,-6843.65071695,0.00015635,2]
[399957107,1766940640731,-151.0,0.00015686,2]
[399957108,1766940640740,-151.0,0.00015686,2]
[399957109,1766940640749,-151.0,0.00015687,2]
[399957110,1766940640758,-151.0,0.00015687,2]
[399957111,1766940640767,-151.0,0.00015687,2]
[399957112,1766940640776,-151.0,0.00015687,2]
[399957113,1766940640785,-151.0,0.00015699,2]
[399957114,1766940640794,-151.0,0.00015699,2]
[399957115,1766940640803,-1200.0,0.0001576,2]
[399957116,1766940640812,-150.0,0.00015797,2]
[399957117,1766940640822,-901.84,0.00015841,2]
[399957118,1766940640831,-6843.65071695,0.00015846,2]
[399957119,1766940640840,-1852.42,0.0001589,2]
[399957120,1766940640849,-500.0,0.00015921,2]
[399957121,1766940640858,-1600.0,0.00015961,2]
[399957122,1766940640871,-150.0,0.00015967,2]
[399957123,1766940640881,-196.74687624,0.00015973,2]
[399957124,1766940640890,-500.0,0.00015973,2]
[399957125,1766940640901,-500.0,0.00016055,2]
[399957126,1766940640912,-6843.65071695,0.00016056,2]
[399957127,1766940640922,-901.84,0.00016115,2]
[399957128,1766940640932,-150.0,0.00016137,2]
[399957129,1766940640944,-6843.65071695,0.00016267,2]
[399957130,1766940640955,-1000.0,0.00016269,2]
[399957131,1766940640965,-29918.8137,0.00016269,2]
[399957132,1766940640976,-150.0,0.00016307,2]
[399957133,1766940640986,-500.0,0.00016368,2]
[399957134,1766940640997,-500.0,0.00016368,2]
[399957135,1766940641006,-500.0,0.00016368,2]
[399957136,1766940641016,-500.0,0.00016368,2]
[399957137,1766940641026,-901.84,0.00016389,2]
[399957138,1766940641036,-500.0,0.00016438,2]
[399957139,1766940641045,-500.0,0.00016438,2]
[399957140,1766940641055,-500.0,0.00016438,2]
[399957141,1766940641065,-500.0,0.00016438,2]
[399957142,1766940641074,-500.0,0.00016438,2]
[399957143,1766940641084,-500.0,0.00016438,2]
[399957144,1766940641093,-500.0,0.00016438,2]
[399957145,1766940641102,-500.0,0.00016438,2]
[399957146,1766940641111,-500.0,0.00016438,2]
[399957147,1766940641121,-500.0,0.00016438,2]
[399957148,1766940641130,-550.0,0.00016438,2]
[399957149,1766940641140,-500.0,0.00016438,2]
[399957150,1766940641150,-500.0,0.00016438,2]
[399957151,1766940641160,-500.0,0.00016438,2]
[399957152,1766940641170,-500.0,0.00016438,2]
[399957153,1766940641180,-500.0,0.00016438,2]
[399957154,1766940641189,-500.0,0.00016438,2]
[399957155,1766940641199,-500.0,0.00016453,2]
[399957156,1766940641208,-150.0,0.00016477,2]
[399957157,1766940641218,-6843.65071695,0.00016478,2]
[399957158,1766940641228,-250.83930928,0.00016486,2]
[399957159,1766940641238,-1000.0,0.00016521,2]
[399957160,1766940641248,-168.0,0.00016541,2]
[399957161,1766940641258,-1740.9,0.00016636,2]
[399957162,1766940641268,-150.0,0.00016647,2]
[399957163,1766940641279,-162.15898507,0.0001666,2]
[399957164,1766940641289,-901.84,0.00016663,2]
[399957165,1766940641300,-6843.65071695,0.00016689,2]
[399957166,1766940641310,-500.0,0.00016699,2]
[399957167,1766940641319,-1587.0,0.00016699,2]
[399957168,1766940641328,-500.0,0.00016699,2]
[399957169,1766940641338,-500.0,0.00016699,2]
[399957170,1766940641347,-500.0,0.00016726,2]
[399957171,1766940641357,-1587.0,0.00016726,2]
[399957172,1766940641366,-515.48135853,0.00016726,2]
[399957173,1766940641375,-500.0,0.00016726,2]
[399957174,1766940641384,-500.0,0.00016754,2]
[399957175,1766940641394,-1587.0,0.00016754,2]
[399957176,1766940641404,-500.0,0.00016754,2]
[399957177,1766940641415,-500.0,0.00016781,2]
[399957178,1766940641424,-1587.0,0.00016781,2]
[399957179,1766940641433,-500.0,0.00016781,2]
[399957180,1766940641444,-500.0,0.00016809,2]
[399957181,1766940641457,-1587.0,0.00016809,2]
[399957182,1766940641468,-500.0,0.00016809,2]
[399957183,1766940641477,-150.0,0.00016816,2]
[399957184,1766940641488,-500.0,0.00016836,2]
[399957185,1766940641498,-1587.0,0.00016836,2]
[399957186,1766940641507,-500.0,0.00016863,2]
[399957187,1766940641518,-1587.0,0.00016863,2]
[399957188,1766940641527,-311.20663021,0.00016891,2]
[399957189,1766940641537,-1587.0,0.00016891,2]
[399957190,1766940641547,-15100.37155089,0.000169,2]
[399957191,1766940641557,-6843.65071695,0.000169,2]
[399957192,1766940641568,-202.5810054,0.000169,2]
[399957193,1766940641580,-161.01679871,0.000169,2]
[399957194,1766940641591,-172.52224244,0.000169,2]
[399957195,1766940641600,-3535.0,0.000169,2]
[399957196,1766940641611,-1587.0,0.00016918,2]
[399957197,1766940641620,-901.91322688,0.00016937,2]
[399957198,1766940641629,-1587.0,0.00016946,2]
[399957199,1766940641639,-1587.0,0.00016973,2]
[399957200,1766940641648,-150.0,0.00016973,2]
[399957201,1766940641659,-646.48024776,0.00016986,2]
[399957202,1766940641670,-176.01870488,0.00016986,2]
[399957203,1766940641679,-150.0,0.00016986,2]
[399957204,1766940641688,-1090.24693266,0.00016999,5]
[399957205,1766940641699,-1090.24693266,0.00016999,5]
[399957206,1766940641708,-1090.24693266,0.00016999,5]
[399957207,1766940641719,-1090.24693267,0.00016999,5]
[399957208,1766940641730,-300.0,0.00016999,2]
[399957209,1766940641739,-300.0,0.00016999,2]
[399957210,1766940641748,-666.0,0.00016999,2]
[399957211,1766940641759,-300.0,0.00016999,2]
[399957212,1766940641769,-1923387.31634105,0.00017,2]
[399957216,1766940643876,-151.0,0.00015869,2]
[399957217,1766940643886,-151.0,0.00015869,2]
[399957218,1766940643895,-311.27446787,0.00017,2]
[399957219,1766940643907,-4122.76392,0.00017,2]
[399957221,1766940646129,-1235.93486426,0.00017,2]
[399957222,1766940646343,-11910.53209238,0.00017,2]
[399957223,1766940646398,-9383.24401081,0.00017,2]
[399957224,1766940646411,-506.90891425,0.00017,2]
[399957225,1766940646423,-384.79023,0.00017,2]
[399957226,1766940646436,-456077.8619203,0.00017,2]
[399957231,1766940738809,1629.686954,0.0003,120]
[399957232,1766940958771,500.0,0.00030136,120]
[399957233,1766940958945,568.85157068,0.00030136,120]
[399957238,1766941832130,-649.95,0.00013699,2]
[399957239,1766941832140,-177.16136203,0.00014597,2]
[399957240,1766941832149,-300.0,0.0001462,2]
[399957241,1766941832159,-150.0,0.0001462,2]
[399957242,1766941832168,-1200.0,0.0001462,2]
[399957243,1766941832177,-40828.69667621,0.00014621,2]
[399957244,1766941832188,-1254.41808677,0.00014621,2]
[399957245,1766941832288,-1795.22834089,0.00014621,2]
[399957246,1766941832299,-705.17575911,0.00014621,2]
[399957490,1766941840399,-306.49466023,0.0001462,2]
[399957496,1766941840453,-180.02227485,0.0001462,2]
[399957498,1766941840462,-213.0892668,0.0001462,2]
[399957500,1766941840472,-203.18645835,0.0001462,2]
[399957502,1766941840482,-296.81354165,0.0001462,2]
[399957504,1766941840491,-10243.71095045,0.00014621,2]
[399957506,1766941840503,-1746.48,0.00014621,2]
[399957509,1766941840514,-4493.96629721,0.00014621,2]
[399957520,1766941840611,-993.28093665,0.00014621,2]